fUST/lending_fUST_20240110
["ID","MTS","AMOUNT","RATE_DAILY","PERIOD"]
[311073796,1704894650026,-500.0,0.00029041,2]
[311073797,1704894650036,-6769.86,0.00029041,2]
[311073798,1704894650045,-500.0,0.00029041,2]
[311073799,1704894650055,-500.0,0.00029041,2]
[311073800,1704894650064,-1310.44,0.00029041,2]
[311073801,1704894650073,-500.0,0.00029041,2]
[311073802,1704894650082,-500.0,0.00029041,2]
[311073803,1704894650093,-500.0,0.00029041,2]
[311073804,1704894650102,-500.0,0.00029041,2]
[311073805,1704894650111,-1258.98,0.00029041,2]
[311073806,1704894650121,-500.0,0.00029041,2]
[311073807,1704894650130,-6610.91,0.00029041,2]
[311073808,1704894650140,-1479.71,0.00029041,2]
[311073809,1704894650149,-896.24,0.00029041,2]
[311073810,1704894650158,-500.0,0.00029041,2]
[311073811,1704894650167,-500.0,0.00029041,2]
[311073812,1704894650176,-500.0,0.00029041,2]
[311073813,1704894650186,-391.0,0.00029202,15]
[311073814,1704894650195,-212.72902683,0.00029215,2]
[311073815,1704894650205,-151.0,0.00029314,2]
[311073816,1704894650214,-151.0,0.00029314,2]
[311073817,1704894650223,-151.0,0.00029314,2]
[311073818,1704894650233,-500.0,0.00029315,2]
[311073819,1704894650242,-500.0,0.00029315,2]
[311073820,1704894650252,-500.0,0.00029315,2]
[311073821,1704894650261,-500.0,0.00029315,2]
[311073822,1704894650272,-500.0,0.00029315,2]
[311073823,1704894650283,-500.0,0.00029315,2]
[311073824,1704894650292,-500.0,0.00029315,2]
[311073825,1704894650301,-500.0,0.00029315,2]
[311073826,1704894650310,-500.0,0.00029315,2]
[311073827,1704894650320,-500.0,0.00029315,2]
[311073828,1704894650329,-523.53427837,0.00029315,2]
[311073829,1704894650338,-500.0,0.00029315,2]
[311073830,1704894650348,-614.65,0.00029315,2]
[311073831,1704894650357,-500.0,0.00029315,2]
[311073832,1704894650366,-500.0,0.00029315,2]
[311073833,1704894650375,-688.88,0.00029315,2]
[311073834,1704894650384,-1201.75,0.00029315,2]
[311073835,1704894650393,-500.0,0.00029315,2]
[311073836,1704894650403,-8881.87,0.00029315,2]
[311073837,1704894650412,-528.39,0.00029315,2]
[311073838,1704894650421,-474.99966459,0.00029315,2]
[311073839,1704894650431,-500.0,0.00029315,2]
[311073840,1704894650440,-500.0,0.00029315,2]
[311073841,1704894650449,-500.0,0.00029315,2]
[311073842,1704894650458,-6769.86,0.00029315,2]
[311073843,1704894650466,-500.0,0.00029315,2]
[311073844,1704894650476,-1310.44,0.00029315,2]
[311073845,1704894650484,-500.0,0.00029315,2]
[311073846,1704894650493,-500.0,0.00029315,2]
[311073847,1704894650502,-500.0,0.00029315,2]
[311073848,1704894650514,-500.0,0.00029315,2]
[311073849,1704894650526,-1258.98,0.00029315,2]
[311073850,1704894650535,-500.0,0.00029315,2]
[311073851,1704894650544,-6610.91,0.00029315,2]
[311073852,1704894650554,-1479.71,0.00029315,2]
[311073853,1704894650564,-896.24,0.00029315,2]
[311073854,1704894650572,-500.0,0.00029315,2]
[311073855,1704894650582,-500.0,0.00029315,2]
[311073856,1704894650591,-500.0,0.00029315,2]
[311073857,1704894650600,-708.61293387,0.00029413,2]
[311073858,1704894650609,-151.0,0.00029522,2]
[311073859,1704894650619,-500.0,0.00029589,2]
[311073860,1704894650628,-500.0,0.00029589,2]
[311073861,1704894650637,-500.0,0.00029589,2]
[311073862,1704894650646,-500.0,0.00029589,2]
[311073863,1704894650657,-500.0,0.00029589,2]
[311073864,1704894650666,-500.0,0.00029589,2]
[311073865,1704894650676,-500.0,0.00029589,2]
[311073866,1704894650685,-500.0,0.00029589,2]
[311073867,1704894650694,-500.0,0.00029589,2]
[311073868,1704894650704,-500.0,0.00029589,2]
[311073869,1704894650714,-500.0,0.00029589,2]
[311073870,1704894650723,-614.65,0.00029589,2]
[311073871,1704894650732,-500.0,0.00029589,2]
[311073872,1704894650742,-500.0,0.00029589,2]
[311073873,1704894650751,-688.88,0.00029589,2]
[311073874,1704894650760,-1201.75,0.00029589,2]
[311073875,1704894650772,-500.0,0.00029589,2]
[311073876,1704894650782,-8881.87,0.00029589,2]
[311073877,1704894650791,-528.39,0.00029589,2]
[311073878,1704894650801,-500.0,0.00029589,2]
[311073879,1704894650810,-500.0,0.00029589,2]
[311073880,1704894650820,-500.0,0.00029589,2]
[311073881,1704894650830,-6769.86,0.00029589,2]
[311073882,1704894650841,-500.0,0.00029589,2]
[311073883,1704894650855,-1310.44,0.00029589,2]
[311073884,1704894650866,-540.81734285,0.00029589,2]
[311073885,1704894650875,-500.0,0.00029589,2]
[311073886,1704894650885,-500.0,0.00029589,2]
[311073887,1704894650895,-500.0,0.00029589,2]
[311073888,1704894650905,-1258.98,0.00029589,2]
[311073889,1704894650914,-500.0,0.00029589,2]
[311073890,1704894650923,-6610.91,0.00029589,2]
[311073891,1704894650932,-1479.71,0.00029589,2]
[311073892,1704894650941,-896.24,0.00029589,2]
[311073893,1704894650951,-500.0,0.00029589,2]
[311073894,1704894650961,-500.0,0.00029589,2]
[311073895,1704894650993,-500.0,0.00029589,2]
[311073896,1704894651003,-500.0,0.00029863,2]
[311073897,1704894651013,-500.0,0.00029863,2]
[311073898,1704894651025,-500.0,0.00029863,2]
[311073899,1704894651034,-500.0,0.00029863,2]
[311073900,1704894651044,-500.0,0.00029863,2]
[311073901,1704894651053,-500.0,0.00029863,2]
[311073902,1704894651062,-500.0,0.00029863,2]
[311073903,1704894651072,-500.0,0.00029863,2]
[311073904,1704894651082,-500.0,0.00029863,2]
[311073905,1704894651091,-500.0,0.00029863,2]
[311073906,1704894651101,-614.65,0.00029863,2]
[311073907,1704894651111,-500.0,0.00029863,2]
[311073908,1704894651121,-500.0,0.00029863,2]
[311073909,1704894651130,-688.88,0.00029863,2]
[311073910,1704894651140,-1201.75,0.00029863,2]
[311073911,1704894651149,-500.0,0.00029863,2]
[311073912,1704894651159,-8881.87,0.00029863,2]
[311073913,1704894651169,-528.39,0.00029863,2]
[311073914,1704894651179,-500.0,0.00029863,2]
[311073915,1704894651189,-500.0,0.00029863,2]
[311073916,1704894651199,-415.8403157,0.00029863,2]
[311073917,1704894651208,-6769.86,0.00029863,2]
[311073918,1704894651218,-500.0,0.00029863,2]
[311073919,1704894651227,-1310.44,0.00029863,2]
[311073920,1704894651237,-500.0,0.00029863,2]
[311073921,1704894651246,-500.0,0.00029863,2]
[311073922,1704894651255,-500.0,0.00029863,2]
[311073923,1704894651266,-1258.98,0.00029863,2]
[311073924,1704894651275,-500.0,0.00029863,2]
[311073925,1704894651286,-6610.91,0.00029863,2]
[311073926,1704894651296,-1479.71,0.00029863,2]
[311073927,1704894651308,-896.24,0.00029863,2]
[311073928,1704894651319,-500.0,0.00029863,2]
[311073929,1704894651329,-500.0,0.00029863,2]
[311073930,1704894651339,-500.0,0.00029863,2]
[311073931,1704894651348,-463.38099934,0.0003,4]
[311073932,1704894651359,-6973.85683356,0.0003,4]
[311073933,1704894651369,-639.65046808,0.0003,4]
[311073934,1704894651380,-228.69658352,0.0003,4]
[311073935,1704894651390,-283.82703277,0.0003,7]
[311073936,1704894651400,-15040.0244209,0.0003,4]
[311073937,1704894651409,-344.03896631,0.0003,4]
[311073938,1704894651426,-135.55184068,0.0003,4]
[311073939,1704894651435,-154.86062544,0.0003,2]
[311073940,1704894651445,-243.77594457,0.0003,4]
[311073941,1704894651456,-847.0,0.0003,7]
[311073942,1704894651465,-2000.0,0.0003,2]
[311073943,1704894651475,-686.6335406,0.0003,4]
[311073944,1704894651486,-283.72420894,0.0003,3]
[311073945,1704894651586,-4337.24,0.0003,2]
[311073946,1704894651596,-1500.0,0.0003,2]
[311073947,1704894651606,-213.0,0.0003,2]
[311073948,1704894651615,-2678.216197,0.0003001,2]
[311073949,1704894651626,-150.0,0.00030136,2]
[311073950,1704894651635,-151.53837863,0.00030136,2]
[311073951,1704894651645,-500.0,0.00030136,2]
[311073952,1704894651655,-500.0,0.00030136,2]
[311073953,1704894651666,-500.0,0.00030136,2]
[311073954,1704894651676,-427.56169964,0.00030136,2]
[311073955,1704894651685,-500.0,0.00030136,2]
[311073956,1704894651696,-523.5033202,0.00030136,2]
[311073957,1704894651706,-500.0,0.00030136,2]
[311073958,1704894651717,-500.0,0.00030136,2]
[311073959,1704894651726,-500.0,0.00030136,2]
[311073960,1704894651737,-323.58,0.00030136,2]
[311073961,1704894651747,-614.65,0.00030136,2]
[311073962,1704894651758,-500.0,0.00030136,2]
[311073963,1704894651770,-500.0,0.00030136,2]
[311073964,1704894651780,-688.88,0.00030136,2]
[311073965,1704894651790,-1201.75,0.00030136,2]
[311073966,1704894651800,-500.0,0.00030136,2]
[311073967,1704894651811,-8881.87,0.00030136,2]
[311073968,1704894651821,-528.39,0.00030136,2]
[311073969,1704894651831,-500.0,0.00030136,2]
[311073970,1704894651842,-500.0,0.00030136,2]
[311073971,1704894651857,-6769.86,0.00030136,2]
[311073972,1704894651867,-1310.44,0.00030136,2]
[311073973,1704894651878,-500.0,0.00030136,2]
[311073974,1704894651887,-500.0,0.00030136,2]
[311073975,1704894651898,-500.0,0.00030136,2]
[311073976,1704894651909,-1258.98,0.00030136,2]
[311073977,1704894651920,-500.0,0.00030136,2]
[311073978,1704894651930,-6610.91,0.00030136,2]
[311073979,1704894651942,-1479.71,0.00030136,2]
[311073980,1704894651952,-896.24,0.00030136,2]
[311073981,1704894651962,-500.0,0.00030136,2]
[311073982,1704894651972,-500.0,0.00030136,2]
[311073983,1704894651983,-500.0,0.00030136,2]
[311073984,1704894651993,-5000.0,0.00030137,2]
[311073985,1704894652004,-2938.07558047,0.00030137,2]
[311073986,1704894652015,-155.0,0.00030137,2]
[311073987,1704894652025,-3264.98707084,0.00030228,2]
[311073988,1704894652036,-500.0,0.0003041,2]
[311073989,1704894652046,-500.0,0.0003041,2]
[311073990,1704894652056,-500.0,0.0003041,2]
[311073991,1704894652065,-500.0,0.0003041,2]
[311073992,1704894652075,-500.0,0.0003041,2]
[311073993,1704894652086,-500.0,0.0003041,2]
[311073994,1704894652096,-500.0,0.0003041,2]
[311073995,1704894652106,-614.65,0.0003041,2]
[311073996,1704894652114,-500.0,0.0003041,2]
[311073997,1704894652123,-500.0,0.0003041,2]
[311073998,1704894652133,-688.88,0.0003041,2]
[311073999,1704894652144,-1201.75,0.0003041,2]
[311074000,1704894652154,-500.0,0.0003041,2]
[311074001,1704894652165,-8881.87,0.0003041,2]
[311074002,1704894652176,-528.39,0.0003041,2]
[311074003,1704894652188,-500.0,0.0003041,2]
[311074004,1704894652198,-500.0,0.0003041,2]
[311074005,1704894652207,-6769.86,0.0003041,2]
[311074006,1704894652216,-1310.44,0.0003041,2]
[311074007,1704894652226,-500.0,0.0003041,2]
[311074008,1704894652236,-507.77795748,0.0003041,2]
[311074009,1704894652246,-500.0,0.0003041,2]
[311074010,1704894652256,-1258.98,0.0003041,2]
[311074011,1704894652268,-500.0,0.0003041,2]
[311074012,1704894652279,-6610.91,0.0003041,2]
[311074013,1704894652289,-1479.71,0.0003041,2]
[311074014,1704894652299,-896.24,0.0003041,2]
[311074015,1704894652309,-500.0,0.0003041,2]
[311074016,1704894652319,-500.0,0.0003041,2]
[311074017,1704894652329,-3652.42,0.00030571,2]
[311074018,1704894652340,-790.48,0.00030575,2]
[311074019,1704894652350,-3457.29,0.00030575,2]
[311074020,1704894652359,-822.64,0.00030578,2]
[311074021,1704894652368,-802.95,0.00030579,2]
[311074022,1704894652378,-4999.99,0.00030589,2]
[311074023,1704894652387,-500.0,0.00030684,2]
[311074024,1704894652397,-500.0,0.00030684,2]
[311074025,1704894652406,-500.0,0.00030684,2]
[311074026,1704894652416,-500.0,0.00030684,2]
[311074027,1704894652425,-500.0,0.00030684,2]
[311074028,1704894652434,-435.71717086,0.00030684,2]
[311074029,1704894652443,-277.9603477,0.00030684,2]
[311074030,1704894652452,-614.65,0.00030684,2]
[311074031,1704894652462,-500.0,0.00030684,2]
[311074032,1704894652471,-500.0,0.00030684,2]
[311074033,1704894652480,-688.88,0.00030684,2]
[311074034,1704894652490,-1201.75,0.00030684,2]
[311074035,1704894652499,-500.0,0.00030684,2]
[311074036,1704894652508,-8881.87,0.00030684,2]
[311074037,1704894652518,-528.39,0.00030684,2]
[311074038,1704894652527,-500.0,0.00030684,2]
[311074039,1704894652536,-500.0,0.00030684,2]
[311074040,1704894652546,-6769.86,0.00030684,2]
[311074041,1704894652556,-1310.44,0.00030684,2]
[311074042,1704894652565,-500.0,0.00030684,2]
[311074043,1704894652575,-500.0,0.00030684,2]
[311074044,1704894652586,-1258.98,0.00030684,2]
[311074045,1704894652596,-500.0,0.00030684,2]
[311074046,1704894652613,-6610.91,0.00030684,2]
[311074047,1704894652630,-1479.71,0.00030684,2]
[311074048,1704894652645,-896.24,0.00030684,2]
[311074049,1704894652658,-500.0,0.00030684,2]
[311074050,1704894652671,-500.0,0.00030684,2]
[311074051,1704894652685,-151.0,0.00030827,2]
[311074052,1704894652700,-151.18004956,0.00030829,2]
[311074053,1704894652714,-624.43064669,0.00030884,2]
[311074054,1704894652729,-159.51541545,0.00030887,2]
[311074055,1704894652742,-1107.99318121,0.00030887,2]
[311074056,1704894652755,-1874.89727334,0.00030887,2]
[311074057,1704894652768,-4234.75345162,0.00030887,2]
[311074058,1704894652783,-2647.92599958,0.00030887,2]
[311074059,1704894652796,-2433.88534906,0.00030887,2]
[311074060,1704894652810,-524.43554644,0.00030958,2]
[311074061,1704894652823,-500.0,0.00030958,2]
[311074062,1704894652837,-315.19886032,0.00030958,2]
[311074063,1704894652855,-500.0,0.00030958,2]
[311074064,1704894652867,-500.0,0.00030958,2]
[311074065,1704894652879,-614.65,0.00030958,2]
[311074066,1704894652895,-500.0,0.00030958,2]
[311074067,1704894652909,-500.0,0.00030958,2]
[311074068,1704894652922,-688.88,0.00030958,2]
[311074069,1704894652937,-1201.75,0.00030958,2]
[311074070,1704894652950,-500.0,0.00030958,2]
[311074071,1704894652963,-8881.87,0.00030958,2]
[311074072,1704894652975,-528.39,0.00030958,2]
[311074073,1704894652990,-500.0,0.00030958,2]
[311074074,1704894653006,-500.0,0.00030958,2]
[311074075,1704894653023,-6769.86,0.00030958,2]
[311074076,1704894653036,-1310.44,0.00030958,2]
[311074077,1704894653048,-500.0,0.00030958,2]
[311074078,1704894653060,-500.0,0.00030958,2]
[311074079,1704894653070,-1258.98,0.00030958,2]
[311074080,1704894653083,-500.0,0.00030958,2]
[311074081,1704894653097,-6610.91,0.00030958,2]
[311074082,1704894653110,-1479.71,0.00030958,2]
[311074083,1704894653122,-896.24,0.00030958,2]
[311074084,1704894653136,-326.22935814,0.00030958,2]
[311074085,1704894653147,-500.0,0.00030958,2]
[311074086,1704894653159,-2043.36173733,0.00030985,2]
[311074087,1704894653171,-38716.59908217,0.00031,4]
[311074088,1704894653182,-500.0,0.00031232,2]
[311074089,1704894653193,-449.06046278,0.00031232,2]
[311074090,1704894653206,-500.0,0.00031232,2]
[311074091,1704894653218,-614.65,0.00031232,2]
[311074092,1704894653230,-646.10503465,0.00031232,2]
[311074093,1704894653242,-500.0,0.00031232,2]
[311074094,1704894653254,-688.88,0.00031232,2]
[311074095,1704894653268,-1201.75,0.00031232,2]
[311074096,1704894653280,-500.0,0.00031232,2]
[311074097,1704894653292,-8881.87,0.00031232,2]
[311074098,1704894653304,-528.39,0.00031232,2]
[311074099,1704894653315,-500.0,0.00031232,2]
[311074100,1704894653328,-500.0,0.00031232,2]
[311074101,1704894653339,-6769.86,0.00031232,2]
[311074102,1704894653351,-1310.44,0.00031232,2]
[311074103,1704894653363,-500.0,0.00031232,2]
[311074104,1704894653375,-500.0,0.00031232,2]
[311074105,1704894653388,-1258.98,0.00031232,2]
[311074106,1704894653400,-500.0,0.00031232,2]
[311074107,1704894653412,-6610.91,0.00031232,2]
[311074108,1704894653425,-1479.71,0.00031232,2]
[311074109,1704894653439,-896.24,0.00031232,2]
[311074110,1704894653449,-563.65913313,0.00031232,2]
[311074111,1704894653460,-298.50747881,0.00031506,2]
[311074112,1704894653469,-500.0,0.00031506,2]
[311074113,1704894653480,-614.65,0.00031506,2]
[311074114,1704894653489,-500.0,0.00031506,2]
[311074115,1704894653499,-688.88,0.00031506,2]
[311074116,1704894653508,-1201.75,0.00031506,2]
[311074117,1704894653520,-500.0,0.00031506,2]
[311074118,1704894653529,-8881.87,0.00031506,2]
[311074119,1704894653539,-528.39,0.00031506,2]
[311074120,1704894653548,-500.0,0.00031506,2]
[311074121,1704894653558,-500.0,0.00031506,2]
[311074122,1704894653568,-6769.86,0.00031506,2]
[311074123,1704894653577,-1310.44,0.00031506,2]
[311074124,1704894653586,-500.0,0.00031506,2]
[311074125,1704894653595,-500.0,0.00031506,2]
[311074126,1704894653605,-1258.98,0.00031506,2]
[311074127,1704894653614,-500.0,0.00031506,2]
[311074128,1704894653623,-6610.91,0.00031506,2]
[311074129,1704894653632,-1479.71,0.00031506,2]
[311074130,1704894653641,-896.24,0.00031506,2]
[311074131,1704894653650,-155.0,0.00031507,2]
[311074132,1704894653659,-4168.98630234,0.00031753,5]
[311074133,1704894653673,-1128.15311956,0.00031753,5]
[311074135,1704894671059,283.82236295,0.00027,20]
[311074142,1704894750753,34899.45070461,0.00027,7]
[311074167,1704895035608,-154.87609912,0.0002488,4]
[311074168,1704895035629,-31.11100427,0.0002488,2]
[311074169,1704895035732,-123.76509485,0.0002488,2]
[311074171,1704895044145,154.87609912,0.0002488,2]
[311074173,1704895050283,154.87609912,0.00024656,4]
[311074174,1704895070271,154.87609912,0.00024656,4]
[311074175,1704895088340,25.6195044,0.00024656,4]
[311074202,1704895333124,200.0,0.00026507,15]
[311074203,1704895364889,150.87929656,0.00029434,120]
[311074228,1704895605191,-154.8915759,0.00022644,2]
[311074238,1704895765743,150.8642222,0.00029664,30]
[311074239,1704895802082,2683.74534925,0.0003,30]
[311074252,1704895833751,-154.87609912,0.00021639,2]
[311074253,1704895833762,-976.0012481,0.0002164,2]
[311074254,1704895833772,-1128.16512575,0.0002164,2]
[311074255,1704895833786,-809.82330741,0.0002164,2]
[311074256,1704895833798,-17890.41146877,0.0002164,2]
[311074257,1704895833809,-7943.71182072,0.00021641,2]
[311074258,1704895833819,-24900.0,0.00021644,2]
[311074259,1704895833829,-166.666666,0.00021918,2]
[311074260,1704895833839,-8338.77,0.0002219,3]
[311074261,1704895833850,-51062.60447875,0.000222,2]
[311074262,1704895833860,-166.666666,0.00022431,2]
[311074263,1704895833870,-210.816276,0.00022646,2]
[311074264,1704895833881,-166.666666,0.00022944,2]
[311074265,1704895833891,-166.666666,0.00023456,2]
[311074266,1704895833902,-166.666666,0.00023969,2]
[311074267,1704895833912,-614.01289661,0.00024,2]
[311074268,1704895833922,-20908.29230276,0.00024106,2]
[311074269,1704895833933,-372.67940215,0.00024106,2]
[311074270,1704895833943,-299.9187449,0.00024106,2]
[311074271,1704895833953,-166.666666,0.00024482,2]
[311074272,1704895833964,-4556.48780231,0.00024656,2]
[311074273,1704895833975,-192.472331,0.00024899,2]
[311074274,1704895833986,-4711.08145103,0.00025,2]
[311074275,1704895833996,-3000.0,0.00025,2]
[311074276,1704895834007,-525.91402641,0.00026,2]
[311074277,1704895834017,-157.00158088,0.00027,2]
[311074278,1704895834028,-155.21578896,0.00027,2]
[311074279,1704895834038,-719.71125454,0.00027,2]
[311074280,1704895834049,-733.25771754,0.00027,2]
[311074281,1704895834060,-212.72902683,0.00027297,2]
[311074282,1704895834214,-331.05708087,0.00027395,2]
[311074283,1704895834230,-421.96234273,0.00027395,2]
[311074284,1704895834241,-500.0,0.00027396,2]
[311074285,1704895834250,-500.0,0.00027396,2]
[311074286,1704895834259,-500.0,0.00027396,2]
[311074287,1704895834269,-356.8529075,0.00027396,2]
[311074288,1704895834279,-500.0,0.00027396,2]
[311074289,1704895834288,-500.0,0.00027396,2]
[311074290,1704895834297,-580.19959649,0.00027396,2]
[311074291,1704895834307,-500.0,0.00027396,2]
[311074292,1704895834316,-500.0,0.00027396,2]
[311074293,1704895834326,-199.59273014,0.00027396,2]
[311074294,1704895834335,-500.0,0.00027396,2]
[311074295,1704895834345,-179.52734361,0.00027396,2]
[311074296,1704895834355,-500.0,0.00027396,2]
[311074297,1704895834364,-581.02298066,0.00027396,2]
[311074298,1704895834374,-500.0,0.00027396,2]
[311074299,1704895834384,-500.0,0.00027396,2]
[311074300,1704895834393,-500.0,0.00027396,2]
[311074301,1704895834402,-500.0,0.00027396,2]
[311074302,1704895834411,-500.0,0.00027396,2]
[311074303,1704895834421,-500.0,0.00027396,2]
[311074304,1704895834430,-500.0,0.00027397,2]
[311074305,1704895834439,-500.0,0.00027397,2]
[311074306,1704895834449,-500.0,0.00027397,2]
[311074307,1704895834459,-504.62005244,0.00027397,2]
[311074308,1704895834468,-500.0,0.00027397,2]
[311074309,1704895834479,-500.0,0.00027397,2]
[311074310,1704895834488,-500.0,0.00027397,2]
[311074311,1704895834497,-500.0,0.00027397,2]
[311074312,1704895834507,-500.0,0.00027397,2]
[311074313,1704895834517,-500.0,0.00027397,2]
[311074314,1704895834526,-500.0,0.00027397,2]
[311074315,1704895834536,-500.0,0.00027397,2]
[311074316,1704895834545,-500.0,0.00027397,2]
[311074317,1704895834555,-500.0,0.00027397,2]
[311074318,1704895834566,-500.0,0.00027397,2]
[311074319,1704895834575,-500.0,0.00027397,2]
[311074320,1704895834584,-500.0,0.00027397,2]
[311074321,1704895834594,-500.0,0.00027397,2]
[311074322,1704895834605,-500.0,0.00027397,2]
[311074323,1704895834615,-500.0,0.00027397,2]
[311074324,1704895834624,-518.5177157,0.00027397,2]
[311074325,1704895834634,-251.80710682,0.00027397,2]
[311074326,1704895834644,-500.0,0.00027397,2]
[311074327,1704895834653,-501.81411556,0.00027397,2]
[311074328,1704895834662,-552.6257611,0.00027397,2]
[311074329,1704895834671,-503.19672187,0.00027397,2]
[311074330,1704895834680,-500.0,0.00027397,2]
[311074331,1704895834690,-500.0,0.00027397,2]
[311074332,1704895834699,-505.88889507,0.00027397,2]
[311074333,1704895834708,-500.0,0.00027397,2]
[311074334,1704895834718,-181.45181432,0.00027397,2]
[311074335,1704895834728,-494.45260509,0.00027397,2]
[311074336,1704895834739,-349.63272372,0.00027397,2]
[311074337,1704895834748,-500.0,0.00027397,2]
[311074338,1704895834758,-500.0,0.00027397,2]
[311074339,1704895834767,-500.0,0.00027397,2]
[311074340,1704895834777,-500.0,0.00027397,2]
[311074341,1704895834786,-500.0,0.00027397,2]
[311074342,1704895834795,-502.96551217,0.00027397,2]
[311074343,1704895834805,-500.0,0.00027397,2]
[311074344,1704895834815,-504.15922534,0.00027397,2]
[311074345,1704895834826,-518.17446798,0.00027397,2]
[311074346,1704895834835,-500.0,0.00027397,2]
[311074347,1704895834844,-534.96716526,0.00027397,2]
[311074348,1704895834855,-513.36800217,0.00027397,2]
[311074349,1704895834865,-500.0,0.00027397,2]
[311074350,1704895834874,-500.0,0.00027397,2]
[311074351,1704895834883,-517.84601733,0.00027397,2]
[311074352,1704895834892,-500.0,0.00027397,2]
[311074353,1704895834903,-500.0,0.00027397,2]
[311074354,1704895834913,-500.0,0.00027397,2]
[311074355,1704895834923,-232.73546203,0.00027397,2]
[311074356,1704895834932,-500.0,0.00027397,2]
[311074357,1704895834941,-503.86625205,0.00027397,2]
[311074358,1704895834950,-500.0,0.00027397,2]
[311074359,1704895834959,-500.0,0.00027397,2]
[311074360,1704895834968,-180.21967225,0.00027397,2]
[311074361,1704895834979,-525.03737803,0.00027397,2]
[311074362,1704895834988,-500.0,0.00027397,2]
[311074363,1704895834996,-497.22417374,0.00027397,2]
[311074364,1704895835005,-500.0,0.00027397,2]
[311074365,1704895835014,-328.02325546,0.00027397,2]
[311074366,1704895835024,-500.0,0.00027397,2]
[311074367,1704895835033,-402.77372549,0.00027397,2]
[311074368,1704895835042,-500.0,0.00027397,2]
[311074369,1704895835052,-500.0,0.00027397,2]
[311074370,1704895835061,-500.0,0.00027397,2]
[311074371,1704895835071,-500.0,0.00027397,2]
[311074372,1704895835080,-520.60560367,0.00027397,2]
[311074373,1704895835090,-500.0,0.00027397,2]
[311074374,1704895835099,-500.0,0.00027397,2]
[311074375,1704895835109,-500.0,0.00027397,2]
[311074376,1704895835119,-249.40477542,0.00027397,2]
[311074377,1704895835130,-500.0,0.00027397,2]
[311074378,1704895835139,-500.0,0.00027397,2]
[311074379,1704895835149,-244.68207348,0.00027397,2]
[311074380,1704895835158,-500.0,0.00027397,2]
[311074381,1704895835168,-500.0,0.00027397,2]
[311074382,1704895835177,-500.0,0.00027397,2]
[311074383,1704895835186,-500.0,0.00027397,2]
[311074384,1704895835196,-500.0,0.00027397,2]
[311074385,1704895835208,-500.0,0.00027397,2]
[311074386,1704895835217,-519.22223267,0.00027397,2]
[311074387,1704895835227,-500.0,0.00027397,2]
[311074388,1704895835236,-500.0,0.00027397,2]
[311074389,1704895835245,-500.0,0.00027397,2]
[311074390,1704895835255,-500.0,0.00027397,2]
[311074391,1704895835265,-196.1788249,0.00027397,2]
[311074392,1704895835274,-500.0,0.00027397,2]
[311074393,1704895835284,-500.0,0.00027397,2]
[311074394,1704895835293,-500.0,0.00027397,2]
[311074395,1704895835303,-500.0,0.00027397,2]
[311074396,1704895835312,-500.0,0.00027397,2]
[311074397,1704895835322,-500.0,0.00027397,2]
[311074398,1704895835333,-500.0,0.00027397,2]
[311074399,1704895835347,-500.0,0.00027397,2]